bitfinex-derivatives/quotes_ETHF0:USTF0_20250910
["timestamp","ask_amount","ask_price","bid_price","bid_amount"]
[1757488773292,0.4346,4317.1,4317.0,0.8552]
[1757488773792,0.319,4317.7,4317.0,0.8552]
[1757488773995,1.18592,4317.7,4317.6,0.2071]
[1757488774199,0.9543,4317.7,4317.6,0.5276]
[1757488774498,0.9543,4317.7,4317.6,0.7344]
[1757488776294,0.4346,4317.7,4317.6,0.7344]
[1757488776492,0.233,4317.7,4317.6,0.7344]
[1757488777095,0.2016,4318.1,4318.0,0.8552]
[1757488777296,0.9543,4318.4,4318.3,0.4139]
[1757488777601,0.9543,4318.4,4318.3,0.7344]
[1757488779899,0.7213,4318.9,4318.8,0.4139]
[1757488780100,0.9543,4318.9,4318.8,0.7344]
[1757488780597,0.6353,4318.9,4318.8,0.7344]
[1757488781502,0.9543,4318.9,4318.8,0.7344]
[1757488791313,0.233,4318.9,4318.8,0.7344]
[1757488792309,0.233,4318.9,4318.8,0.91850108]
[1757488792510,0.233,4318.9,4318.8,0.7344]
[1757488793512,0.3139,4319.2,4318.8,0.7344]
[1757488793707,0.3139,4319.9,4319.0,0.1289]
[1757488793908,0.5978,4319.8,4319.7,0.2088]
[1757488794113,0.9117,4319.8,4319.7,0.2088]
[1757488794414,0.9117,4319.8,4319.7,0.5184]
[1757488796214,0.9117,4319.8,4319.7,0.7178]
[1757488796513,0.2118,4319.8,4319.7,0.7178]
[1757488798113,0.7207,4319.8,4319.7,0.7178]
[1757488799214,0.2118,4319.8,4319.7,0.7178]
[1757488799919,0.5257,4319.8,4319.7,0.7178]
[1757488800708,1.74463464,4320.1,4320.0,0.8467]
[1757488800912,1.93963464,4320.1,4320.0,0.8467]
[1757488801516,1.62573464,4320.1,4320.0,0.8467]
[1757488801710,0.4068,4320.1,4320.0,0.8467]
[1757488801911,0.2118,4320.1,4320.0,0.8467]
[1757488802113,0.3139,4320.3,4320.0,0.8467]
[1757488802420,1.93963464,4320.5,4320.4,0.7178]
[1757488802920,1.62573464,4320.5,4320.4,0.7178]
[1757488803218,0.2118,4320.5,4320.4,0.7178]
[1757488804117,0.3139,4320.8,4320.5,0.4385]
[1757488804317,1.08997716,4320.7,4320.6,0.7178]
[1757488805722,1.28497716,4320.7,4320.6,0.7178]
[1757488806221,1.28497716,4320.7,4320.6,0.5184]
[1757488817439,1.50007716,4320.7,4320.6,0.7178]
[1757488822245,1.50007716,4320.7,4320.6,0.5184]
[1757488824148,1.73152716,4320.7,4320.1,0.2965]
[1757488824444,1.72999995,4320.2,4320.1,0.5083]
[1757488824839,1.72999995,4320.2,4320.1,0.7229]
[1757488826943,1.02719995,4320.4,4320.1,0.7229]
[1757488827150,1.26019995,4320.4,4320.3,0.7229]
[1757488827447,1.46039995,4320.4,4320.3,0.7229]
[1757488827646,1.76789995,4320.4,4320.3,0.7229]
[1757488828253,1.96299995,4320.4,4320.3,0.7229]
[1757488829649,1.96299995,4320.4,4320.3,0.5083]
[1757488830350,1.96299995,4320.4,4320.3,0.7229]
[1757488833448,0.2002,4319.7,4319.6,0.5083]
[1757488833655,0.2002,4319.7,4319.6,0.95438]
[1757488833855,0.3075,4320.0,4319.6,0.95438]
[1757488834056,0.5077,4320.0,4319.9,0.4264]
[1757488834249,0.5077,4320.0,4319.9,0.7229]
[1757488835656,0.7028,4320.0,4319.9,0.7229]
[1757488837552,0.2002,4320.0,4319.9,0.7229]
[1757488837857,0.5077,4320.0,4319.9,0.7229]
[1757488839457,0.7028,4320.0,4319.9,0.7229]
[1757488841156,0.2002,4320.0,4319.9,0.7229]
[1757488841362,0.127,4320.7,4320.6,0.5083]
[1757488841363,1.72999995,4320.7,4320.6,0.5083]
[1757488841564,2.29671574,4320.7,4320.6,0.5083]
[1757488843761,2.29671574,4320.7,4320.0,0.1184]
[1757488843950,0.7028,4320.2,4320.1,0.7229]
[1757488846463,0.3953,4320.2,4320.1,0.7229]
[1757488847862,0.6998,4320.2,4320.1,0.7229]
[1757488848764,0.2002,4320.2,4320.1,0.7229]
[1757488850463,0.5047,4320.2,4320.1,0.7229]
[1757488857568,0.7043,4320.2,4320.1,0.7229]
[1757488860068,1.02719995,4320.4,4320.1,0.7229]
[1757488860260,1.02719995,4320.4,4320.2,0.3159]
[1757488860461,1.22729995,4320.4,4320.3,0.7287]
[1757488861071,1.73139995,4320.4,4320.3,0.7287]
[1757488862967,1.42689995,4320.4,4320.3,0.7287]
[1757488863869,1.73139995,4320.4,4320.3,0.7287]
[1757488868667,2.29900569,4320.4,4320.3,0.7287]
[1757488870272,1.27180574,4320.4,4320.3,0.7287]
[1757488872373,0.76770574,4320.4,4320.3,0.7287]
[1757488872672,0.56760574,4320.4,4320.3,0.7287]
[1757488873174,0.76770574,4320.4,4320.3,0.7287]
[1757488874968,0.56760574,4320.4,4320.3,1.75589995]
[1757488875263,0.7042,4321.1,4321.0,0.7287]
[1757488875571,0.7042,4321.1,4321.0,0.8479]
[1757488875768,0.7042,4321.1,4321.0,0.7287]
[1757488875969,0.2001,4321.1,4321.0,0.8479]
[1757488876275,0.7042,4321.9,4321.8,0.525]
[1757488877179,0.2001,4321.9,4321.8,0.7265]
[1757488878267,0.5116,4322.1,4322.0,0.1268]
[1757488878572,0.5116,4322.1,4322.0,0.8236]
[1757488878573,0.1991,4322.1,4322.0,0.8236]
[1757488878970,0.5116,4322.1,4322.0,0.8236]
[1757488879678,0.7192,4322.1,4322.0,0.8236]
[1757488882767,0.3125,4322.5,4322.0,0.5263]
[1757488882978,0.1193,4324.0,4322.8,0.4953]
[1757488882979,0.63805,4322.9,4322.8,0.4953]
[1757488883378,0.1991,4322.9,4322.8,0.6968]
[1757488883567,0.5116,4322.9,4322.8,0.6968]
[1757488883774,0.7192,4322.9,4322.8,0.6968]
[1757488883972,1.74639995,4323.7,4323.6,0.198]
[1757488884273,1.74639995,4323.7,4323.0,0.1268]
[1757488884274,1.74639995,4323.7,4323.1,0.2973]
[1757488884471,1.74639995,4323.7,4323.1,0.6968]
[1757488884472,0.7192,4323.2,4323.1,0.6968]
[1757488885871,0.7192,4323.2,4322.5,0.1268]
[1757488886076,0.7192,4323.2,4322.6,0.2973]
[1757488887578,0.7192,4323.2,4323.1,0.4953]
[1757488896277,0.7192,4323.2,4323.1,0.6968]
[1757488896977,0.7192,4323.2,4323.1,0.4953]
[1757488897379,0.7192,4323.2,4323.1,0.2973]
[1757488897578,0.7192,4323.2,4323.1,0.4953]
[1757488898678,0.5116,4323.2,4323.1,0.6968]
[1757488898881,0.7192,4323.2,4323.1,0.6968]
[1757488899083,0.7192,4323.2,4323.1,0.4953]
[1757488900081,0.7192,4323.2,4323.1,0.6968]
[1757488901780,0.3125,4324.9,4324.5,0.1268]
[1757488901980,0.3125,4324.9,4324.0,0.1268]
[1757488901981,0.7192,4324.7,4324.6,0.2973]
[1757488902281,0.7192,4324.7,4324.6,0.4953]
[1757488903287,0.7192,4324.7,4324.1,0.2973]
[1757488904181,0.4067,4323.7,4323.0,0.1268]
[1757488904488,0.7192,4323.2,4323.1,0.4953]
[1757488907785,0.7192,4323.2,4322.6,0.2946]
[1757488909587,0.1976,4322.1,4322.0,0.534]
[1757488909788,0.7106,4322.1,4322.0,0.534]
[1757488910288,0.3018,4323.4,4322.1,0.2946]
[1757488910478,0.94304827,4323.3,4323.2,0.506]
[1757488910886,1.24484827,4323.3,4323.2,0.7018]
[1757488911092,0.1253,4325.0,4323.2,0.4072]
[1757488911093,0.143,4324.9,4323.2,0.4072]
[1757488911288,1.06722664,4324.4,4323.3,0.2946]
[1757488911592,0.7106,4324.2,4324.1,0.506]
[1757488911792,1.24474664,4324.2,4324.1,0.506]
[1757488911994,1.24474664,4324.2,4324.1,0.7018]
[1757488912380,1.24474664,4324.2,4323.5,0.1173]
[1757488912582,0.7106,4323.7,4323.6,0.7018]
[1757488912786,1.24474664,4323.7,4323.6,0.7018]
[1757488912986,0.94294664,4323.7,4323.6,0.7018]
[1757488913786,1.24474664,4323.7,4323.6,0.7018]
[1757488913986,1.24474664,4323.7,4323.3,0.2946]
[1757488914188,0.1976,4323.2,4323.1,0.7018]
[1757488918900,0.7106,4323.2,4323.1,0.7018]
[1757488921199,0.7106,4323.2,4322.6,0.2946]
[1757488923605,0.94193,4323.2,4322.6,0.2946]
[1757488923801,0.7106,4323.2,4322.6,0.2946]
[1757488924697,0.7106,4323.2,4323.1,0.506]
[1757488926691,0.7106,4323.2,4323.1,0.7018]
[1757488927595,0.3018,4323.5,4323.1,0.4072]
[1757488927800,0.1976,4323.3,4323.2,0.7018]
[1757488928099,0.7106,4323.3,4323.2,0.7018]
[1757488928301,0.7106,4323.3,4323.1,0.2946]
[1757488929003,0.7106,4323.3,4322.6,0.2946]
[1757488929403,0.7106,4323.3,4323.2,0.2114]
[1757488929599,1.24502057,4323.3,4323.2,0.7018]
[1757488929804,0.7106,4323.3,4323.2,0.7018]
[1757488930306,0.3018,4323.2,4322.6,0.2946]
[1757488930606,0.7106,4323.2,4323.1,0.7018]
[1757488931894,0.7106,4323.2,4323.1,0.506]
[1757488932406,0.7106,4323.2,4322.6,0.2946]
[1757488932699,0.7106,4323.2,4323.1,0.2114]
[1757488932904,0.7106,4323.2,4323.1,0.506]
[1757488933402,1.24538069,4323.2,4323.1,0.506]
[1757488934207,0.7106,4323.2,4323.1,0.506]
[1757488934404,1.24556368,4323.2,4323.1,0.506]
[1757488934806,0.73256368,4323.2,4323.1,0.7018]
[1757488935404,0.1976,4323.2,4323.1,0.7018]
[1757488938506,0.4069,4323.2,4323.1,0.7018]
[1757488938807,0.7043,4323.2,4323.1,0.506]
[1757488938995,0.7043,4323.2,4322.6,0.3065]
[1757488939193,0.2093,4323.1,4323.0,0.2002]
[1757488939406,0.7175,4323.1,4323.0,0.5067]
[1757488940709,0.7175,4322.6,4322.5,0.8289]
[1757488940906,0.4201,4322.6,4322.5,0.8352]
[1757488941103,0.2974,4323.4,4322.6,0.3065]
[1757488941408,0.7175,4323.4,4323.3,0.5067]
[1757488941612,1.252548,4323.4,4323.3,0.5067]
[1757488941905,1.252548,4323.4,4323.3,0.7116]
[1757488942406,1.252548,4323.4,4323.1,0.3065]
[1757488942607,0.4201,4323.2,4323.1,0.5067]
[1757488942804,1.252548,4323.2,4323.1,0.5067]
[1757488943508,0.745848,4323.2,4323.1,0.7116]
[1757488943805,1.043248,4323.2,4323.1,0.7116]
[1757488944007,1.252548,4323.2,4323.1,0.7116]
[1757488945610,1.252548,4323.2,4322.5,0.1236]
[1757488945906,0.2108,4322.7,4322.6,0.7116]
[1757488946804,0.7175,4322.7,4322.1,0.3065]
[1757488947005,0.4201,4322.4,4322.3,0.2002]
[1757488947204,0.4201,4322.4,4322.3,0.5067]
[1757488947597,0.7175,4322.4,4322.3,0.7116]
[1757488948909,0.2108,4322.6,4322.5,0.8352]
[1757488950607,0.7175,4322.6,4322.5,0.8352]
[1757488951303,0.7175,4322.6,4322.5,0.3065]
[1757488951605,0.2108,4322.6,4322.5,0.8352]
[1757488952211,0.7175,4322.6,4322.5,0.8352]
[1757488952416,1.74341049,4322.6,4322.5,0.5067]
[1757488952611,1.74341049,4322.6,4322.0,0.1173]
[1757488952910,1.74341049,4322.6,4322.1,0.3065]
[1757488953612,1.74341049,4322.6,4322.4,0.5067]
[1757488953613,0.7175,4322.5,4322.4,0.5067]
[1757488954714,0.7175,4322.5,4322.4,0.7116]
[1757488969917,0.2108,4322.5,4322.4,0.7116]
[1757488970225,0.2002,4323.1,4323.0,0.8553]
[1757488970526,1.25897346,4323.1,4323.0,0.8553]
[1757488971221,0.53457346,4323.1,4323.0,0.8553]
[1757488971823,0.73477346,4323.1,4323.0,0.8553]
[1757488973026,1.25897346,4323.1,4323.0,0.8553]
[1757488974324,1.25897346,4323.1,4323.0,0.7387]
[1757488978326,1.25897346,4323.1,4323.0,0.5295]
[1757488978517,1.25897346,4323.1,4323.0,0.2133]
[1757488978826,1.25897346,4323.1,4323.0,0.5295]
[1757488979630,1.25897346,4323.1,4322.6,0.3162]
[1757488979926,0.7244,4322.7,4322.6,0.5295]
[1757488980119,0.7244,4322.7,4322.6,0.7387]
[1757488981628,0.7244,4322.7,4322.1,0.3162]
[1757488981629,1.25921009,4322.7,4322.1,0.3162]
[1757488981831,0.4104,4322.2,4322.1,0.7387]
[1757488982033,0.7244,4322.2,4322.1,0.7387]
[1757488983740,1.75031049,4322.2,4322.1,0.5295]
[1757488984333,1.75031049,4322.2,4322.1,0.7387]
[1757488986730,0.7244,4322.2,4322.1,0.7387]
[1757488989037,0.7244,4322.2,4322.1,0.5295]
[1757488989433,0.7244,4322.2,4321.6,0.3162]
[1757488989735,0.7244,4322.1,4322.0,0.5295]
[1757488990139,0.4104,4321.7,4321.6,0.5295]
[1757488990326,0.7244,4321.7,4321.6,0.5295]
[1757488990835,0.7244,4321.7,4321.6,0.7387]
[1757488991537,0.7244,4321.7,4321.1,0.3162]
[1757488991736,1.43631049,4321.4,4321.3,0.2133]
[1757488991932,1.43631049,4321.4,4321.3,0.7387]
[1757488992332,1.75031049,4321.4,4321.3,0.7387]
[1757488994834,0.7244,4321.4,4321.3,0.7387]
[1757488995039,0.2002,4321.6,4321.5,0.1166]
[1757488995232,0.2002,4321.6,4321.5,0.8553]
[1757488995440,1.33991049,4322.1,4321.6,0.3162]
[1757488995642,0.7472,4321.9,4321.8,0.7387]
[1757488995940,0.7244,4321.9,4321.8,0.7387]
[1757488996326,0.4104,4321.9,4321.8,0.7387]
[1757488996535,0.2002,4321.9,4321.8,0.7387]
[1757488997235,0.233,4322.3,4322.1,0.2947]
[1757488997439,0.2926,4322.6,4322.5,0.5515]
[1757488997440,0.7103,4322.6,4322.5,0.5515]
[1757488997637,0.7103,4322.6,4322.5,0.8462]
[1757488997832,0.4177,4322.6,4322.5,0.8462]
[1757488998338,0.7103,4322.6,4322.5,0.8462]
[1757489001243,0.7103,4322.6,4322.5,0.7182]
[1757489004044,0.2066,4322.6,4322.5,0.8462]
[1757489004339,33.8292,4323.0,4322.9,0.4235]
[1757489004547,34.57048393,4323.0,4322.9,0.7182]
[1757489004947,34.80348393,4323.0,4322.9,0.7182]
[1757489005249,34.80348393,4323.0,4322.9,1.74411049]
[1757489005250,0.53018393,4323.0,4322.9,1.74411049]
[1757489005446,0.2066,4323.1,4323.0,0.4227]
[1757489005642,0.2066,4323.1,4323.0,0.8462]
[1757489006550,0.7103,4323.1,4323.0,0.8462]
[1757489007344,0.7103,4323.1,4323.0,0.5046]
[1757489007546,0.7103,4323.1,4323.0,0.2947]
[1757489007849,0.7103,4323.1,4322.1,0.7182]
[1757489007850,0.7103,4322.2,4322.1,0.7182]
[1757489009440,0.2926,4322.5,4322.2,0.2947]
[1757489009641,0.2066,4322.7,4322.6,0.7182]
[1757489009847,0.3986,4322.7,4322.6,0.7182]
[1757489010554,0.6912,4322.7,4322.6,0.7182]
[1757489010752,0.9023,4322.7,4322.1,0.2947]
[1757489011651,0.9023,4322.7,4322.6,0.5046]
[1757489012854,0.9023,4322.7,4322.6,0.7182]
[1757489013152,0.7103,4322.7,4322.6,0.7182]
[1757489013355,0.9443,4322.7,4322.6,0.7182]
[1757489013756,0.9443,4322.7,4322.1,0.2947]
[1757489015954,0.9443,4322.7,4322.6,0.5046]
[1757489016257,0.9443,4322.7,4322.6,0.7182]
[1757489016455,0.7103,4322.7,4322.6,0.7182]
[1757489016656,0.9443,4322.7,4322.6,0.7182]
[1757489020057,0.9443,4322.7,4322.6,0.5046]
[1757489021067,0.9443,4322.7,4322.1,0.2947]
[1757489021258,0.9443,4322.7,4321.5,0.1166]
[1757489021259,0.4177,4321.8,4321.7,0.7182]
[1757489021464,0.7103,4321.8,4321.7,0.7182]
[1757489021761,0.4177,4321.8,4321.7,0.7182]
[1757489022563,0.2066,4321.8,4321.7,0.7182]
[1757489022764,0.1154,4321.8,4321.7,0.7182]
[1757489022968,0.021,4323.0,4321.8,0.2947]
[1757489023265,0.8517,4323.0,4322.9,0.5046]
[1757489023458,1.38205621,4323.0,4322.9,0.5046]
[1757489023658,1.38205621,4323.0,4322.9,0.2099]
[1757489024068,1.38205621,4323.0,4322.9,0.5046]
[1757489024767,1.38205621,4323.0,4322.6,0.2947]
[1757489025067,1.24065621,4322.9,4322.8,0.5046]
[1757489026068,1.24065621,4322.9,4322.0,0.128]
[1757489026270,0.7103,4322.7,4322.6,0.2099]
[1757489026470,1.24065621,4322.7,4322.6,0.5046]
[1757489026864,0.7103,4323.4,4323.3,0.7406]
[1757489027168,1.24100029,4323.4,4323.3,0.7406]
[1757489028868,0.7103,4323.4,4323.3,0.7406]
[1757489029675,0.234,4323.5,4323.3,0.7406]
[1757489029972,0.234,4323.5,4323.4,0.7222]
[1757489030374,0.4392,4323.5,4323.4,0.7222]
[1757489030674,0.762,4323.5,4323.4,0.7222]
[1757489032170,0.5305,4324.0,4323.9,0.4051]
[1757489032374,1.61973356,4324.0,4323.9,0.7222]
[1757489034464,1.26503356,4324.0,4323.9,0.7222]
[1757489034670,1.49903356,4324.0,4323.9,0.7222]
[1757489035168,0.9666,4324.0,4323.9,0.7222]
[1757489042180,0.7326,4324.0,4323.9,0.7222]
[1757489042479,0.234,4324.0,4323.9,0.7222]
[1757489043179,0.9666,4324.0,4323.9,0.7222]
[1757489047083,1.0835,4324.0,4323.9,0.7222]
[1757489049077,0.9666,4324.0,4323.9,0.7222]
[1757489051987,1.0835,4324.0,4323.9,0.7222]
[1757489052180,1.0835,4324.0,4323.9,0.5195]
[1757489052883,0.9666,4324.0,4323.9,0.7222]
[1757489053983,33.331,4324.6,4323.9,0.7222]
[1757489053984,0.1204,4325.0,4323.9,0.7222]
[1757489054185,0.3228,4325.4,4324.9,0.3171]
[1757489054389,0.5267,4325.5,4325.4,0.2024]
[1757489054791,0.4098,4325.5,4325.4,0.7222]
[1757489054991,0.7326,4325.5,4325.4,0.7222]
[1757489057591,0.2052,4325.5,4325.4,0.7222]
[1757489058190,0.5019,4325.5,4325.4,0.7222]
[1757489058591,0.7037,4325.5,4325.4,0.7222]
[1757489059094,0.8329,4325.5,4325.4,0.2024]
[1757489059393,0.8329,4325.5,4325.1,0.2945]
[1757489059693,0.8329,4325.5,4324.7,0.2945]
[1757489060793,2.04761305,4325.5,4324.7,0.2945]
[1757489061390,0.8329,4325.5,4324.7,0.2945]
[1757489063096,0.8329,4325.5,4325.4,0.4921]
[1757489063289,0.7037,4325.5,4325.4,0.6961]
[1757489069796,1.72831012,4325.5,4325.4,0.6961]
[1757489070404,0.7037,4325.5,4325.4,0.6961]
[1757489071197,0.8329,4325.5,4325.4,0.4921]
[1757489074504,0.8329,4325.5,4325.0,0.1205]
[1757489074805,1.73151012,4325.3,4325.2,0.4921]
[1757489075495,0.7069,4325.3,4325.2,0.4921]
[1757489076100,0.2084,4324.2,4324.1,0.6961]
[1757489076293,0.2084,4324.2,4324.1,0.92733]
[1757489076604,0.2967,4324.5,4324.1,0.4016]
[1757489076906,0.7069,4324.9,4324.8,0.6961]
[1757489077698,0.7069,4324.9,4324.8,0.1976]
[1757489077911,0.7069,4324.9,4324.0,0.1258]
[1757489078113,0.2967,4324.8,4324.1,0.23123999]
[1757489078305,0.5051,4324.3,4324.2,0.6961]
[1757489078898,0.7069,4324.3,4324.2,0.6961]
[1757489079598,0.2084,4324.3,4324.2,0.6961]
[1757489081702,0.5051,4324.3,4324.2,0.6961]
[1757489082604,0.2967,4324.8,4324.3,0.2945]
[1757489082810,0.5051,4324.8,4324.7,0.6961]
[1757489083603,0.7069,4324.8,4324.7,0.6961]
[1757489083999,0.233,4325.3,4324.7,0.6961]
[1757489084199,0.7069,4325.2,4325.1,0.6961]
[1757489086408,0.73093204,4325.2,4325.1,0.6961]
[1757489086811,0.73093204,4325.2,4325.1,0.4921]
[1757489087909,0.73093204,4325.2,4325.1,0.1976]
[1757489088112,0.73093204,4325.2,4325.1,0.5079]
[1757489088907,0.73093204,4325.2,4324.5,0.1205]
[1757489089114,0.5015,4324.7,4324.6,0.7268]
[1757489089410,0.52553204,4324.7,4324.6,0.7268]
[1757489089610,0.73853204,4324.7,4324.6,0.7268]
[1757489093014,0.22583204,4324.7,4324.6,0.7268]
[1757489093208,0.52553204,4324.7,4324.6,0.7268]
[1757489095009,0.02403204,4324.7,4324.6,0.7268]
[1757489095209,0.2997,4325.6,4324.6,2.30769755]
[1757489095406,0.7145,4325.6,4325.5,0.7268]
[1757489097514,0.7145,4325.6,4325.5,0.5132]
[1757489097716,0.4148,4325.2,4325.1,0.7268]
[1757489097911,0.7145,4325.2,4325.1,0.7268]
[1757489099715,0.5015,4325.2,4325.1,0.7268]
[1757489099915,0.2018,4325.2,4325.1,0.7268]
[1757489100319,1.32431012,4325.8,4325.1,0.4165]
[1757489100516,0.73345282,4325.7,4325.6,0.4165]
[1757489100718,1.03315282,4325.7,4325.6,0.7268]
[1757489101319,1.24615282,4325.7,4325.6,0.7268]
[1757489102321,1.24615282,4325.7,4325.6,0.2029]
[1757489102520,0.5376,4325.5,4325.4,0.5132]
[1757489102722,1.86191012,4325.5,4325.4,0.5132]
[1757489102920,1.86191012,4325.5,4324.6,1.65996755]
[1757489103223,0.2997,4325.4,4324.7,0.3103]
[1757489105018,0.7145,4325.4,4325.3,0.5132]
[1757489106018,0.7145,4325.4,4325.3,0.7268]
[1757489106916,0.2997,4325.7,4325.3,0.7268]
[1757489107120,0.7145,4325.9,4325.8,0.7268]
[1757489108420,0.7145,4325.9,4325.8,0.5132]
[1757489109228,0.7145,4325.9,4325.8,0.7268]
[1757489115024,0.233,4326.2,4326.1,0.3103]
[1757489115220,0.1228,4327.5,4326.0,0.1271]
[1757489115221,0.5327,4326.9,4326.2,0.3103]
[1757489115524,0.5015,4326.3,4326.2,0.7268]
[1757489116023,0.2997,4326.8,4326.2,0.4165]
[1757489116325,0.5015,4326.7,4326.6,0.4165]
[1757489116520,0.7145,4326.7,4326.6,0.7268]
[1757489117031,1.73911012,4326.7,4326.6,0.7268]
[1757489120729,1.73911012,4326.7,4326.6,0.5132]
[1757489120927,1.73911012,4326.7,4326.6,0.2051]
[1757489121126,0.7145,4326.7,4326.6,0.7078]
[1757489123717,0.7047,4327.4,4327.3,0.2988]
[1757489123917,1.72931012,4327.2,4327.1,0.2051]
[1757489124125,0.3013,4327.1,4326.6,0.2988]
[1757489124327,0.7047,4327.9,4327.8,0.2051]
[1757489124526,0.7047,4327.9,4327.8,0.7078]
[1757489124723,0.1982,4327.9,4327.8,0.7078]
[1757489125425,0.4995,4327.9,4327.8,0.7078]
[1757489125626,0.3568,4328.5,4327.8,0.7078]
[1757489125627,0.3013,4328.3,4327.8,0.7078]
[1757489125932,0.1982,4327.9,4327.8,0.7078]
[1757489126326,0.4995,4327.9,4327.8,0.7078]
[1757489126926,1.72931012,4327.9,4327.8,0.5039]
[1757489128320,0.7047,4327.9,4327.8,0.5039]
[1757489128523,0.7047,4327.9,4327.8,0.7078]
[1757489129926,0.7047,4327.9,4327.1,0.2988]
[1757489130132,0.7047,4327.2,4327.1,0.7078]
[1757489130335,0.3013,4327.8,4327.2,0.2988]
[1757489130537,0.7047,4327.8,4327.7,0.2051]
[1757489130735,0.7047,4327.8,4327.1,0.2988]
[1757489132434,0.7047,4327.2,4327.1,0.2988]
[1757489132634,0.7047,4327.2,4327.1,0.7078]
[1757489132834,0.4995,4327.2,4327.1,0.7078]
[1757489133535,0.7047,4327.2,4327.1,0.7078]
[1757489133742,0.7047,4326.9,4326.8,0.5039]
[1757489134038,0.7047,4326.9,4326.8,0.7078]
[1757489134726,0.1982,4326.9,4326.8,0.7078]
[1757489134926,0.1982,4326.9,4326.8,0.409]
[1757489135131,0.7047,4326.9,4326.8,0.7078]
[1757489139255,0.1982,4326.9,4326.8,0.7078]
[1757489140151,0.4995,4326.9,4326.8,0.7078]
[1757489140354,0.1982,4326.9,4326.8,0.7078]
[1757489141359,0.3013,4327.4,4326.9,0.2988]
[1757489141559,0.7047,4327.0,4326.9,0.7078]
[1757489143358,0.1982,4327.0,4326.9,0.7078]
[1757489143551,0.3013,4327.3,4326.9,0.7078]
[1757489143751,0.8248,4327.5,4327.4,0.2051]
[1757489144053,0.8248,4327.5,4327.1,0.2988]
[1757489144454,0.8248,4327.5,4326.6,0.2988]
[1757489144656,0.7047,4327.4,4326.6,0.23111]
[1757489144855,0.7047,4327.4,4326.7,0.2988]
[1757489147961,1.91689856,4327.4,4326.7,0.2988]
[1757489148355,0.7175,4326.8,4326.7,0.5091]
[1757489148656,0.7175,4326.8,4326.7,0.7243]
[1757489151862,0.8429,4326.5,4326.4,0.2103]
[1757489152067,0.7175,4325.9,4325.8,0.52]
[1757489152260,0.7175,4325.9,4325.8,0.7352]
[1757489154466,0.7175,4325.9,4325.8,0.2103]
[1757489155166,0.7175,4325.9,4325.8,0.52]
[1757489155565,0.7175,4325.9,4325.1,0.3097]
[1757489155865,0.7175,4325.8,4325.7,0.2103]
[1757489156064,0.7175,4325.8,4325.7,0.52]
[1757489156566,0.7175,4325.8,4325.4,0.3097]
[1757489156866,0.7175,4325.8,4325.7,0.52]
[1757489157068,0.7175,4325.8,4325.4,0.3097]
[1757489157266,0.7175,4325.8,4325.1,0.3097]
[1757489158267,0.7175,4325.8,4325.7,0.52]
[1757489158466,0.7175,4325.8,4325.7,0.7352]
[1757489160964,0.1951,4325.8,4325.7,0.7352]
[1757489162269,0.5058,4325.8,4325.7,0.7352]
[1757489162771,0.7175,4325.8,4325.7,0.7352]
[1757489163068,0.7175,4325.8,4325.1,0.3097]
[1757489166766,0.7175,4325.8,4325.7,0.2103]
[1757489167576,0.7175,4325.8,4325.7,0.7352]
[1757489168773,0.1254,4326.5,4325.7,0.4255]
[1757489169079,1.18166,4326.4,4326.3,0.52]
[1757489169374,0.9505,4326.4,4326.3,0.52]
[1757489169575,0.9505,4326.4,4326.3,0.7352]
[1757489170171,0.7175,4326.4,4326.3,0.7352]
[1757489171070,0.3107,4326.7,4326.3,0.4255]
[1757489171275,0.233,4327.3,4326.7,0.3097]
[1757489171575,0.9505,4327.3,4327.2,0.2103]
[1757489171775,0.9505,4327.3,4327.2,0.52]
[1757489172174,0.7175,4327.3,4327.2,0.52]
[1757489172777,0.7175,4327.3,4327.2,0.7352]
[1757489175486,0.7175,4327.9,4327.8,0.52]
[1757489175674,0.9505,4327.9,4327.8,0.52]
[1757489176282,0.9505,4327.9,4327.8,0.2103]
[1757489176582,1.92969856,4327.9,4327.8,0.2103]
[1757489177478,1.92969856,4327.9,4327.0,0.1244]
[1757489177679,1.92969856,4327.9,4327.1,0.3057]
[1757489181872,0.9561,4327.8,4327.7,0.2152]
[1757489182672,0.9561,4327.8,4327.7,0.7205]
[1757489183178,0.9561,4327.8,4327.7,0.2152]
[1757489183378,0.7231,4327.8,4327.7,0.2152]
[1757489183580,0.9561,4327.8,4327.7,0.2152]
[1757489184088,0.9561,4327.8,4327.7,0.5209]
[1757489184487,0.9561,4327.8,4327.7,0.7205]
[1757489184781,0.7231,4327.8,4327.7,0.7205]
[1757489184984,0.5166,4327.8,4327.7,0.7205]
[1757489185486,0.1994,4327.8,4327.7,0.7205]
[1757489186783,0.5166,4327.8,4327.7,0.7205]
[1757489187287,0.7231,4327.8,4327.7,0.7205]
[1757489188391,0.5166,4327.8,4327.7,0.7205]
[1757489189183,0.7231,4327.8,4327.7,0.2152]
[1757489189388,0.7231,4327.8,4327.7,0.7205]
[1757489202795,0.5166,4327.1,4327.0,0.5392]
[1757489203200,0.5166,4327.1,4327.0,0.7703]
[1757489203502,0.1994,4327.1,4327.0,1.076]
[1757489203703,0.1994,4327.1,4327.0,0.8449]
[1757489204204,1.34077183,4327.4,4327.0,0.8449]
[1757489204396,0.5166,4327.3,4327.2,0.4148]
[1757489204596,0.5166,4327.3,4327.2,0.7205]
[1757489204895,1.34077183,4327.4,4327.3,0.3057]
[1757489205097,0.3172,4327.4,4327.3,0.7205]
[1757489205396,0.5166,4327.4,4327.3,0.7205]
[1757489205702,1.74667183,4327.4,4327.3,0.7205]